bitfinex/quotes_BTCUSD_20240723
["timestamp","ask_amount","ask_price","bid_price","bid_amount"]
[1721695061714,0.36735807,67778.0,67777.0,0.88782171]
[1721695063398,0.2536147,67778.0,67777.0,0.88782171]
[1721695063605,0.36333416,67778.0,67777.0,0.88782171]
[1721695063807,0.36333355,67778.0,67777.0,0.88782171]
[1721695064899,0.49591816,67778.0,67777.0,0.88782171]
[1721695065132,0.13057642,67778.0,67777.0,1.47799171]
[1721695065369,0.13057642,67778.0,67777.0,1.18290671]
[1721695065370,0.1132935,67778.0,67777.0,1.18290671]
[1721695065599,0.09119615,67778.0,67777.0,1.18290671]
[1721695065997,0.00284,67778.0,67777.0,1.18290671]
[1721695066485,0.11328943,67778.0,67777.0,1.18290671]
[1721695066956,0.00284,67778.0,67777.0,1.18290671]
[1721695067217,0.11328943,67778.0,67777.0,1.18290671]
[1721695067431,0.00284,67778.0,67777.0,1.18290671]
[1721695068094,0.09116803,67778.0,67777.0,1.18290671]
[1721695069372,0.00284,67778.0,67777.0,1.18290671]
[1721695070262,0.06906727,67778.0,67777.0,1.18290671]
[1721695070702,0.00284,67778.0,67777.0,1.18290671]
[1721695070967,0.06905653,67778.0,67777.0,1.18290671]
[1721695071202,0.06905667,67778.0,67777.0,1.18290671]
[1721695071644,0.00284,67778.0,67777.0,1.18290671]
[1721695072092,0.00284,67778.0,67777.0,1.55409171]
[1721695073200,0.00284,67778.0,67777.0,1.47799171]
[1721695074129,0.00284,67778.0,67777.0,1.49523458]
[1721695074362,0.00284,67778.0,67777.0,1.47799171]
[1721695075103,0.00184,67778.0,67777.0,1.47699171]
[1721695075313,0.00284,67778.0,67777.0,1.48199171]
[1721695075554,0.00184,67778.0,67777.0,1.48199171]
[1721695075784,0.00184,67778.0,67777.0,1.47699171]
[1721695076281,0.00184,67778.0,67777.0,1.48399171]
[1721695076525,0.00284,67778.0,67777.0,1.49199171]
[1721695084020,0.00284,67778.0,67777.0,1.50923458]
[1721695085012,0.00284,67778.0,67777.0,1.90431958]
[1721695088030,0.00284,67778.0,67777.0,1.95431958]
[1721695091818,0.00284,67778.0,67777.0,1.88707671]
[1721695092034,0.00284,67778.0,67777.0,1.93707671]
[1721695096143,0.00284,67778.0,67777.0,1.64199171]
[1721695096819,0.00284,67778.0,67777.0,1.93707671]
[1721695098528,0.00284,67778.0,67777.0,1.95431958]
[1721695103352,0.00284,67778.0,67777.0,1.93707671]
[1721695104423,0.00284,67778.0,67777.0,1.95431958]
[1721695107522,0.00284,67778.0,67777.0,1.93707671]
[1721695109023,0.00284,67778.0,67777.0,1.64199171]
[1721695109855,0.00284,67778.0,67777.0,1.93707671]
[1721695113486,0.04709205,67778.0,67777.0,1.93707671]
[1721695114762,0.00284,67778.0,67777.0,1.93707671]
[1721695116612,0.06924358,67778.0,67777.0,1.93707671]
[1721695117227,0.00284,67778.0,67777.0,1.44569171]
[1721695117485,0.11351263,67778.0,67777.0,1.44569171]
[1721695118180,0.11357306,67778.0,67777.0,1.44569171]
[1721695118395,0.00284,67778.0,67777.0,1.44569171]
[1721695118603,0.11357301,67778.0,67777.0,1.44569171]
[1721695119665,0.00284,67778.0,67777.0,1.58249171]
[1721695120285,0.06927896,67778.0,67777.0,1.63249171]
[1721695120508,0.06927968,67778.0,67777.0,1.63249171]
[1721695121158,0.06927957,67778.0,67777.0,1.64973458]
[1721695121584,0.06927957,67778.0,67777.0,1.63249171]
[1721695121816,0.06927957,67778.0,67777.0,1.70859171]
[1721695122456,0.06927957,67778.0,67777.0,1.72583458]
[1721695122667,0.06927957,67778.0,67777.0,2.02091958]
[1721695123130,0.06927957,67778.0,67777.0,1.72583458]
[1721695123973,0.00284,67778.0,67777.0,1.72583458]
[1721695124185,0.06928833,67778.0,67777.0,1.72583458]
[1721695124441,0.00284,67778.0,67777.0,1.72583458]
[1721695125268,0.00284,67778.0,67777.0,2.02091958]
[1721695128573,0.09145105,67778.0,67777.0,2.02091958]
[1721695130295,0.00284,67778.0,67777.0,1.95367671]
[1721695130528,0.09147613,67778.0,67777.0,1.95367671]
[1721695130778,0.09147613,67778.0,67777.0,2.02091958]
[1721695133035,0.00284,67778.0,67777.0,2.02091958]
[1721695133301,0.11363517,67778.0,67777.0,2.02091958]
[1721695133556,0.11363831,67778.0,67777.0,2.02091958]
[1721695133792,0.11363831,67778.0,67777.0,1.70859171]
[1721695134307,0.11363831,67778.0,67777.0,2.00367671]
[1721695135036,0.00284,67778.0,67777.0,2.00367671]
[1721695135753,0.09147822,67778.0,67777.0,2.00367671]
[1721695136707,0.0914797,67778.0,67777.0,2.00367671]
[1721695136943,0.00284,67778.0,67777.0,2.00367671]
[1721695137321,0.09148017,67778.0,67777.0,2.00367671]
[1721695137518,0.0914837,67778.0,67777.0,2.00367671]
[1721695137719,0.0914837,67778.0,67777.0,1.70859171]
[1721695138129,0.00284,67778.0,67777.0,1.70859171]
[1721695138297,0.00284,67778.0,67777.0,1.64799171]
[1721695138780,0.11363963,67778.0,67777.0,1.49569171]
[1721695139024,0.14584,67778.0,67777.0,1.44569171]
[1721695139248,0.14294,67778.0,67777.0,1.44569171]
[1721695140500,0.0623,67782.0,67781.0,1.327801]
[1721695140707,0.08539577,67782.0,67781.0,1.403901]
[1721695141595,0.08639577,67782.0,67781.0,1.410901]
[1721695142178,0.08739577,67782.0,67781.0,1.410901]
[1721695143354,0.02509577,67782.0,67781.0,1.410901]
[1721695143803,0.02509577,67782.0,67781.0,1.41285915]
[1721695144225,0.10269577,67782.0,67781.0,1.41285915]
[1721695146979,0.0796,67782.0,67781.0,1.41285915]
[1721695147415,0.10269512,67782.0,67781.0,1.41285915]
[1721695147846,0.0796,67782.0,67781.0,1.33675915]
[1721695148485,0.10269513,67782.0,67781.0,1.33675915]
[1721695150010,0.0796,67782.0,67781.0,1.33675915]
[1721695150867,0.002,67782.0,67781.0,1.63182615]
[1721695151099,0.002,67782.0,67781.0,1.64906902]
[1721695151315,0.002,67782.0,67781.0,1.63182615]
[1721695151945,0.002,67782.0,67781.0,1.78756902]
[1721695155972,0.11279041,67782.0,67781.0,1.78756902]
[1721695157465,0.002,67782.0,67781.0,1.78756902]
[1721695157658,0.11362809,67782.0,67781.0,1.78756902]
[1721695158253,0.11362809,67782.0,67781.0,1.78446902]
[1721695159672,0.11362809,67782.0,67781.0,1.63182615]
[1721695160479,0.11362205,67782.0,67781.0,1.63182615]
[1721695163495,0.00284,67782.0,67781.0,1.64906902]
[1721695163768,0.11361994,67782.0,67781.0,1.64906902]
[1721695164009,0.11361994,67782.0,67781.0,1.78906902]
[1721695164224,0.11361994,67782.0,67781.0,1.88906902]
[1721695164225,0.09146127,67782.0,67781.0,1.88906902]
[1721695164659,0.09146127,67782.0,67781.0,2.23413602]
[1721695164660,0.00284,67782.0,67781.0,2.23413602]
[1721695165344,0.00081909,67782.0,67781.0,2.23413602]
[1721695166151,0.06728048,67782.0,67781.0,2.31195063]
[1721695166378,0.00081909,67782.0,67781.0,2.31195063]
[1721695166589,0.00081909,67782.0,67781.0,2.31194271]
[1721695167368,0.04512061,67782.0,67781.0,2.31194271]
[1721695168447,0.00081909,67782.0,67781.0,2.31194271]
[1721695168681,0.04512061,67782.0,67781.0,2.31194271]
[1721695169965,0.04510789,67782.0,67781.0,2.31573511]
[1721695170392,0.00081909,67782.0,67781.0,2.36573511]
[1721695171569,0.00181909,67782.0,67781.0,2.36573511]
[1721695172267,0.00181909,67782.0,67781.0,2.35873511]
[1721695172505,0.00281909,67782.0,67781.0,2.37273511]
[1721695172756,0.00281909,67782.0,67781.0,2.29113602]
[1721695172996,0.00281909,67782.0,67781.0,2.37296429]
[1721695173211,0.00281909,67782.0,67781.0,2.29113602]
[1721695173419,0.00281909,67782.0,67781.0,2.37296782]
[1721695175884,0.00281909,67782.0,67781.0,2.22389315]
[1721695176122,0.00281909,67782.0,67781.0,2.37265744]
[1721695178865,0.00281909,67782.0,67781.0,2.30541457]
[1721695179068,0.00281909,67782.0,67781.0,2.30549887]
[1721695179273,0.00281909,67782.0,67781.0,2.37274174]
[1721695181209,0.00281909,67782.0,67781.0,2.16549887]
[1721695181447,0.20730021,67782.0,67781.0,1.44375915]
[1721695181710,0.22942725,67782.0,67781.0,1.44375915]
[1721695181948,0.25155429,67782.0,67781.0,1.44375915]
[1721695182213,0.25156847,67782.0,67781.0,1.44375915]
[1721695182445,0.14091909,67782.0,67781.0,1.44375915]
[1721695184103,0.2294342,67782.0,67781.0,1.44375915]
[1721695185158,0.22943365,67782.0,67781.0,1.44375915]
[1721695186842,0.14091909,67782.0,67781.0,1.44375915]
[1721695187094,0.2073068,67782.0,67781.0,1.44375915]
[1721695188046,0.1452068,67782.0,67781.0,1.44375915]
[1721695188290,0.0692068,67782.0,67781.0,1.44375915]
[1721695188521,0.0692068,67782.0,67781.0,1.46100202]
[1721695188522,0.00281909,67782.0,67781.0,1.46100202]
[1721695188743,0.00281909,67782.0,67781.0,1.83406902]
[1721695189476,0.00281909,67782.0,67781.0,1.89946902]
[1721695190456,0.00281909,67782.0,67781.0,1.90376902]
[1721695190685,0.00281909,67782.0,67781.0,1.95376902]
[1721695192281,0.00281909,67782.0,67781.0,1.78882615]
[1721695194327,0.00281909,67782.0,67781.0,1.80606902]
[1721695197471,0.0470873,67782.0,67781.0,1.80606902]
[1721695197698,0.00281909,67782.0,67781.0,1.80606902]
[1721695197897,0.04708842,67782.0,67781.0,1.80606902]
[1721695198052,0.00281909,67782.0,67781.0,1.80606902]
[1721695198943,0.00281909,67782.0,67781.0,1.85606902]
[1721695199142,0.00281909,67782.0,67781.0,1.93626902]
[1721695199961,0.00281909,67782.0,67781.0,2.37697521]
[1721695200179,0.00281909,67782.0,67781.0,2.08190821]
[1721695200409,0.00281909,67782.0,67781.0,2.00116902]
[1721695200623,0.00281909,67782.0,67781.0,2.37659241]
[1721695200856,0.00281909,67782.0,67781.0,2.39959241]
[1721695201874,0.00181909,67782.0,67781.0,2.38559241]
[1721695202280,0.00181909,67782.0,67781.0,2.39959241]
[1721695202487,0.00281909,67782.0,67781.0,2.41259241]
[1721695202896,0.04425149,67797.0,67794.0,0.05195815]
[1721695203127,0.04425149,67797.0,67796.0,0.44346115]
[1721695203128,0.06637724,67797.0,67796.0,0.44346115]
[1721695203328,0.1393,67798.0,67797.0,0.442497]
[1721695203544,0.20566612,67798.0,67797.0,1.42844915]
[1721695203767,0.1393,67798.0,67797.0,1.50454915]
[1721695205003,0.1393,67798.0,67797.0,1.51854915]
[1721695205665,0.1393,67798.0,67797.0,1.53254915]
[1721695206283,0.20564818,67798.0,67797.0,1.53254915]
[1721695206947,0.20564818,67798.0,67797.0,1.45644915]
[1721695207118,0.1393,67798.0,67797.0,1.53254915]
[1721695207395,0.20564839,67798.0,67797.0,1.53254915]
[1721695208857,0.1393,67798.0,67797.0,1.53254915]
[1721695209267,0.20563978,67798.0,67797.0,1.53254915]
[1721695209471,0.1393,67798.0,67797.0,1.53254915]
[1721695210510,0.20563978,67798.0,67797.0,1.45644915]
[1721695210732,0.20563978,67798.0,67797.0,1.53254915]
[1721695212277,0.1393,67798.0,67797.0,1.53254915]
[1721695212484,0.20563089,67798.0,67797.0,1.53254915]
[1721695212713,0.20562827,67798.0,67797.0,1.53254915]
[1721695214983,0.1393,67798.0,67797.0,1.53254915]
[1721695222092,0.14014,67798.0,67797.0,1.53254915]
[1721695223566,0.18434241,67798.0,67797.0,1.53254915]
[1721695224622,0.14014,67798.0,67797.0,1.53254915]
[1721695224871,0.14014,67798.0,67797.0,1.45644915]
[1721695224872,0.18434089,67798.0,67797.0,1.45644915]
[1721695225101,0.14014,67798.0,67797.0,1.53254915]
[1721695226389,0.14014,67798.0,67797.0,1.45644915]
[1721695226830,0.13979053,67798.0,67797.0,1.45644915]
[1721695229744,0.13979053,67798.0,67797.0,0.76645315]
[1721695229963,0.13979053,67798.0,67797.0,0.47145515]
[1721695229964,0.2972728,67798.0,67797.0,0.47145515]
[1721695230174,0.2972728,67798.0,67797.0,0.76645315]
[1721695230804,0.29761443,67798.0,67797.0,0.75245315]
[1721695231011,0.29761443,67798.0,67797.0,0.76545315]
[1721695231431,0.29761443,67798.0,67797.0,0.75145315]
[1721695231636,0.29761443,67798.0,67797.0,0.76545315]
[1721695232470,0.32047165,67798.0,67797.0,0.76545315]
[1721695233807,0.29761443,67798.0,67797.0,0.76545315]
[1721695234015,0.43031431,67798.0,67797.0,0.76545315]
[1721695235298,0.32047519,67798.0,67797.0,0.76545315]
[1721695236941,0.218499,67798.0,67797.0,0.76545315]
[1721695237142,0.31692311,67798.0,67797.0,0.76545315]
[1721695237274,0.32833951,67798.0,67797.0,0.76545315]
[1721695237471,0.39400332,67798.0,67797.0,0.84155315]
[1721695237722,0.16288124,67798.0,67797.0,0.84155315]
[1721695237928,0.16288124,67798.0,67797.0,0.76545315]
[1721695238134,0.19563837,67798.0,67797.0,0.76545315]
[1721695238684,0.29509024,67798.0,67797.0,0.76545315]
[1721695240001,0.19563837,67798.0,67797.0,0.76545315]
[1721695240867,0.29531734,67798.0,67797.0,0.76545315]
[1721695241276,0.26256021,67798.0,67797.0,1.06045115]
[1721695241513,0.16288124,67798.0,67797.0,0.76545315]
[1721695241932,0.13979053,67798.0,67797.0,0.76545315]
[1721695242136,0.13979053,67798.0,67797.0,1.06045115]
[1721695242353,0.16288236,67798.0,67797.0,1.06045115]
[1721695242796,0.13979053,67798.0,67797.0,1.06045115]
[1721695243006,0.16288219,67798.0,67797.0,1.06045115]
[1721695244441,0.07844,67798.0,67797.0,1.06045115]
[1721695244611,0.00084,67798.0,67797.0,1.06045115]
[1721695245936,0.16833139,67798.0,67797.0,1.06045115]
[1721695246447,0.20108852,67798.0,67797.0,1.06045115]
[1721695247068,0.16833139,67798.0,67797.0,1.06045115]
[1721695254031,0.02393139,67798.0,67797.0,1.06045115]
[1721695254270,0.00084,67798.0,67797.0,1.06045115]
[1721695254785,0.11146336,67798.0,67797.0,1.06045115]
[1721695255053,0.11146336,67798.0,67797.0,1.06137515]
[1721695255549,0.00084,67798.0,67797.0,1.06137515]
[1721695257893,0.00084,67798.0,67797.0,1.41977315]
[1721695258164,0.00084,67798.0,67797.0,1.49557315]
[1721695258165,0.11147021,67798.0,67797.0,1.49557315]
[1721695258405,0.00084,67798.0,67797.0,1.49557315]
[1721695258670,0.1114701,67798.0,67797.0,1.49557315]
[1721695258919,0.00084,67798.0,67797.0,1.49557315]
[1721695259166,0.11147133,67798.0,67797.0,1.49557315]
[1721695260146,0.00084,67798.0,67797.0,1.49557315]
[1721695260418,0.11147323,67798.0,67797.0,1.35637315]
[1721695260693,0.00084,67798.0,67797.0,1.35637315]
[1721695261606,0.11147515,67798.0,67797.0,1.35637315]
[1721695262829,0.00084,67798.0,67797.0,1.35637315]
[1721695263076,0.08934701,67798.0,67797.0,1.35637315]
[1721695263803,0.00084,67798.0,67797.0,1.35637315]
[1721695264034,0.08934598,67798.0,67797.0,1.35637315]
[1721695264983,0.00084,67798.0,67797.0,1.35637315]
[1721695266212,0.08934575,67798.0,67797.0,1.35637315]
[1721695267173,0.00084,67798.0,67797.0,1.35637315]
[1721695267389,0.00084,67798.0,67797.0,1.06137515]
[1721695267627,0.24528655,67798.0,67797.0,1.06137515]
[1721695267843,0.36803449,67798.0,67797.0,0.76637715]
[1721695268068,0.50079342,67798.0,67797.0,0.76637715]
[1721695268273,0.39090761,67798.0,67797.0,0.76637715]
[1721695268478,0.50081176,67798.0,67797.0,0.75337715]
[1721695268969,0.39456521,67798.0,67797.0,0.76137715]
[1721695269230,0.20078794,67798.0,67797.0,0.76137715]
[1721695269461,0.20078794,67798.0,67797.0,1.05637515]
[1721695269462,0.02393046,67798.0,67797.0,1.05637515]
[1721695271859,0.00084,67798.0,67797.0,1.05637515]
[1721695274040,0.11149108,67798.0,67797.0,1.05637515]
[1721695274248,0.11149108,67798.0,67797.0,1.35137315]
[1721695274459,0.00084,67798.0,67797.0,1.05637515]
[1721695275005,0.00084,67798.0,67797.0,1.04237515]
[1721695275232,0.00084,67798.0,67797.0,1.33737315]
[1721695275423,0.00084,67798.0,67797.0,1.35137315]
[1721695275890,0.00084,67798.0,67797.0,1.34337315]
[1721695276392,0.00084,67798.0,67797.0,1.06137515]
[1721695277097,0.02393031,67798.0,67797.0,1.06137515]
[1721695277830,0.02393031,67798.0,67797.0,1.35637315]
[1721695278096,0.02393031,67798.0,67797.0,1.06137515]
[1721695279088,0.02393031,67798.0,67797.0,1.35637315]
[1721695279823,0.02393031,67798.0,67797.0,1.06137515]
[1721695286317,0.00084,67798.0,67797.0,1.49307315]
[1721695286489,0.11155417,67798.0,67797.0,1.49307315]
[1721695287077,0.00084,67798.0,67797.0,1.49307315]
[1721695287437,0.11155417,67798.0,67797.0,1.49307315]
[1721695288002,0.00084,67798.0,67797.0,1.49307315]
[1721695289606,0.00084,67798.0,67797.0,1.51031602]
[1721695289805,0.00084,67798.0,67797.0,1.49307315]
[1721695290006,0.08940459,67798.0,67797.0,1.59307315]
[1721695290207,0.08940459,67798.0,67797.0,1.88807115]
[1721695290581,0.08940459,67798.0,67797.0,1.59307315]
[1721695291438,0.06725585,67798.0,67797.0,1.59307315]
[1721695291898,0.06725576,67798.0,67797.0,1.61031602]
[1721695292107,0.06725576,67798.0,67797.0,1.88807115]
[1721695293183,0.00084,67798.0,67797.0,1.90531402]
[1721695293682,0.00084,67798.0,67797.0,1.88807115]
[1721695293924,0.00084,67798.0,67797.0,1.90531402]
[1721695294745,0.00084,67798.0,67797.0,1.88807115]
[1721695296145,0.04510692,67798.0,67797.0,1.88807115]
[1721695296760,0.00084,67798.0,67797.0,1.59307315]
[1721695298138,0.00084,67798.0,67797.0,1.88807115]
[1721695298323,0.00084,67798.0,67797.0,1.90531402]
[1721695298551,0.0451027,67798.0,67797.0,1.90531402]
[1721695299566,0.00084,67798.0,67797.0,1.99305491]
[1721695299805,0.00084,67798.0,67797.0,1.68081404]
[1721695300244,0.00084,67798.0,67797.0,1.97581204]
[1721695300870,0.00084,67798.0,67797.0,1.97584187]
[1721695301092,0.00084,67798.0,67797.0,1.97588967]
[1721695301734,0.00084,67798.0,67797.0,1.88807115]
[1721695305805,0.00084,67798.0,67797.0,1.59307315]
[1721695306018,0.00084,67798.0,67797.0,1.53237315]
[1721695306405,0.00084,67798.0,67797.0,1.45637315]
[1721695306621,0.04509185,67798.0,67797.0,1.45637315]
[1721695306854,0.00084,67798.0,67797.0,1.45637315]
[1721695307674,0.18818978,67798.0,67797.0,1.45637315]
[1721695307883,0.14394,67798.0,67797.0,1.45637315]
[1721695308261,0.23244111,67798.0,67797.0,1.45637315]
[1721695308880,0.14394,67798.0,67797.0,1.45637315]
[1721695309311,0.23244551,67798.0,67797.0,1.45637315]
[1721695309515,0.14394,67798.0,67797.0,1.45637315]
[1721695309722,0.23244625,67798.0,67797.0,1.45637315]
[1721695309931,0.14394,67798.0,67797.0,1.45637315]
[1721695310554,0.23244464,67798.0,67797.0,1.45637315]
[1721695310772,0.16934464,67798.0,67797.0,1.45637315]
[1721695310981,0.08084,67798.0,67797.0,1.45637315]
[1721695314259,0.14722315,67798.0,67797.0,1.45637315]
[1721695314431,0.14722313,67798.0,67797.0,1.45637315]
[1721695314692,0.08084,67798.0,67797.0,1.45637315]
[1721695314895,0.14722295,67798.0,67797.0,1.45637315]
[1721695315314,0.08084,67798.0,67797.0,1.45637315]
[1721695317790,0.34424,67798.0,67797.0,0.76637715]
[1721695317999,0.34424,67798.0,67797.0,0.027924]
[1721695318000,0.59179947,67798.0,67797.0,0.027924]
[1721695318209,0.66789947,67798.0,67797.0,0.027924]
[1721695318644,0.63514234,67798.0,67797.0,0.027924]
[1721695318860,0.66789947,67798.0,67797.0,0.027924]
[1721695319042,0.66789947,67798.0,67797.0,0.014924]
[1721695319474,0.66789947,67798.0,67797.0,0.003924]
[1721695319686,0.63512887,67798.0,67797.0,0.003924]
[1721695319896,0.63512887,67798.0,67797.0,0.008924]
[1721695319897,0.667886,67798.0,67797.0,0.008924]
[1721695320856,0.667886,67798.0,67797.0,0.005924]
[1721695321668,0.667886,67798.0,67797.0,0.007924]
[1721695321956,0.63512887,67798.0,67797.0,0.007924]
[1721695322171,0.56235422,67798.0,67797.0,0.007924]
[1721695322404,0.59511135,67798.0,67797.0,0.007924]
[1721695322646,0.74433142,67798.0,67797.0,0.007924]
[1721695323272,0.71157429,67798.0,67797.0,0.007924]
[1721695323459,0.74433142,67798.0,67797.0,0.007924]
[1721695323705,0.59511135,67798.0,67797.0,0.007924]
[1721695325066,0.59486943,67798.0,67797.0,0.007924]
[1721695325996,0.59486278,67798.0,67797.0,0.007924]
[1721695328276,0.59477906,67798.0,67797.0,0.007924]
[1721695328698,0.59474195,67798.0,67797.0,0.007924]
[1721695329397,1.4542658,67798.0,67797.0,0.007924]
[1721695329648,1.7231588,67798.0,67797.0,0.007924]
[1721695329858,1.91752499,67798.0,67797.0,0.007924]
[1721695330064,1.96752499,67798.0,67797.0,0.007924]
[1721695330723,1.54220104,67798.0,67797.0,0.000924]
[1721695330964,1.51407807,67798.0,67797.0,0.002924]
[1721695331174,1.17004322,67798.0,67797.0,0.002924]
[1721695331393,1.1369555,67798.0,67797.0,0.001924]
[1721695331613,1.4319485,67798.0,67797.0,0.001924]
[1721695331830,1.4339485,67798.0,67797.0,0.002924]
[1721695332055,1.58462013,67798.0,67797.0,0.002924]
[1721695332274,1.66049885,67798.0,67797.0,0.001924]
[1721695332491,2.82348129,67798.0,67797.0,0.001924]
[1721695332707,2.82548129,67798.0,67797.0,0.002924]
[1721695332927,2.79804176,67798.0,67797.0,0.001924]
[1721695333373,2.80104176,67798.0,67797.0,0.002924]
[1721695333597,0.43275713,67782.0,67779.0,0.002794]
[1721695333813,0.43275713,67782.0,67778.0,0.000924]
[1721695333814,1.28301075,67782.0,67778.0,0.000924]
[1721695334024,1.46530359,67782.0,67778.0,0.000924]
[1721695334234,1.28301075,67782.0,67778.0,0.000924]
[1721695334437,1.41543615,67782.0,67778.0,0.000924]
[1721695334665,1.28314831,67782.0,67778.0,0.000924]
[1721695334891,1.76046041,67782.0,67778.0,0.000924]
[1721695335124,1.65721131,67782.0,67778.0,0.000924]
[1721695335342,1.70721131,67782.0,67778.0,0.000924]
[1721695335764,1.65721131,67782.0,67778.0,0.000924]
[1721695336456,1.75925316,67782.0,67778.0,0.000924]
[1721695336677,1.84140492,67782.0,67778.0,0.000924]
[1721695336891,2.30991616,67782.0,67778.0,0.000924]
[1721695337092,2.43804178,67782.0,67778.0,0.000924]
[1721695337338,2.21379962,67782.0,67778.0,0.000924]
[1721695337563,2.43798101,67782.0,67778.0,0.000924]
[1721695337778,2.58494366,67782.0,67778.0,0.000924]
[1721695337994,2.88000666,67782.0,67778.0,0.000924]
[1721695338421,2.87400666,67782.0,67778.0,0.000924]
[1721695338654,3.03654734,67782.0,67778.0,0.000924]
[1721695339087,1.81305898,67778.0,67777.0,0.00085156]
[1721695339301,4.48798015,67778.0,67777.0,0.00085156]
[1721695339520,4.58798015,67778.0,67777.0,0.00085156]
[1721695339728,4.73645219,67778.0,67777.0,0.00085156]
[1721695339951,4.58798015,67778.0,67777.0,0.00085156]
[1721695340166,0.95286498,67766.0,67765.0,9.968e-05]
[1721695340384,3.55406907,67766.0,67765.0,9.968e-05]
[1721695340823,3.58153144,67766.0,67765.0,9.968e-05]
[1721695341535,2.82946482,67766.0,67765.0,9.968e-05]
[1721695341743,2.27829315,67766.0,67765.0,9.968e-05]
[1721695341956,2.47829315,67766.0,67765.0,9.968e-05]
[1721695342390,2.33072715,67766.0,67765.0,9.968e-05]
[1721695342620,2.26378314,67766.0,67765.0,9.968e-05]
[1721695342828,2.27178314,67766.0,67765.0,9.968e-05]
[1721695343043,1.99568314,67766.0,67765.0,9.968e-05]
[1721695343265,2.09891019,67766.0,67765.0,0.14766768]
[1721695343477,2.12857528,67766.0,67765.0,0.14766768]
[1721695343936,2.20467528,67766.0,67765.0,0.14766768]
[1721695344168,2.10447528,67766.0,67765.0,0.14766768]
[1721695344409,2.02937528,67766.0,67765.0,0.14766768]
[1721695344641,2.03037528,67766.0,67765.0,0.44280468]
[1721695344878,2.03037528,67766.0,67765.0,0.14766768]
[1721695345122,2.02937528,67766.0,67765.0,0.14766768]
[1721695345350,2.03037528,67766.0,67765.0,0.14766768]
[1721695345568,1.56601019,67766.0,67765.0,0.14766768]
[1721695345770,1.56601019,67766.0,67765.0,0.44280468]
[1721695346196,1.80351085,67766.0,67765.0,0.44280468]
[1721695346440,1.80351088,67766.0,67765.0,0.44280468]
[1721695349157,1.95047353,67766.0,67765.0,9.968e-05]
[1721695349368,1.95043463,67766.0,67765.0,9.968e-05]
[1721695349684,2.17149005,67766.0,67765.0,9.968e-05]
[1721695349885,2.02392405,67766.0,67765.0,9.968e-05]
[1721695350288,2.3196604,67766.0,67765.0,9.968e-05]
[1721695350516,2.3926604,67766.0,67765.0,9.968e-05]
[1721695350691,2.3906604,67766.0,67765.0,9.968e-05]
[1721695350893,2.3936604,67766.0,67765.0,9.968e-05]
[1721695351478,2.6857934,67766.0,67765.0,9.968e-05]
[1721695351694,2.54362305,67766.0,67765.0,9.968e-05]
[1721695352100,2.8618658,67766.0,67765.0,9.968e-05]
[1721695352355,2.8558658,67766.0,67765.0,9.968e-05]
[1721695352499,2.85561304,67766.0,67765.0,9.968e-05]
[1721695352703,2.85861304,67766.0,67765.0,9.968e-05]
[1721695352935,3.25242368,67766.0,67765.0,9.968e-05]
[1721695353134,3.24942368,67766.0,67765.0,9.968e-05]
[1721695353343,3.25342368,67766.0,67765.0,9.968e-05]
[1721695354439,3.26042368,67766.0,67765.0,9.968e-05]
[1721695355694,3.26015828,67766.0,67765.0,9.968e-05]
[1721695356196,3.36015828,67766.0,67765.0,9.968e-05]
[1721695356619,3.48633474,67766.0,67765.0,9.968e-05]
[1721695358767,3.48702965,67766.0,67765.0,9.968e-05]
[1721695359537,3.43702965,67766.0,67765.0,9.968e-05]
[1721695359829,3.48702965,67766.0,67765.0,9.968e-05]
[1721695360480,3.53100458,67766.0,67765.0,9.968e-05]
[1721695360685,3.48702965,67766.0,67765.0,9.968e-05]
[1721695360895,3.55295115,67766.0,67765.0,9.968e-05]
[1721695361301,3.48702965,67766.0,67765.0,9.968e-05]
[1721695361710,3.48754152,67766.0,67765.0,9.968e-05]
[1721695362321,3.57556572,67766.0,67765.0,9.968e-05]
[1721695362525,3.57556506,67766.0,67765.0,9.968e-05]
[1721695362939,3.58469506,67766.0,67765.0,9.968e-05]
[1721695363146,3.60665171,67766.0,67765.0,9.968e-05]
[1721695364325,3.49667152,67766.0,67765.0,9.968e-05]
[1721695364550,3.57221452,67766.0,67765.0,9.968e-05]
[1721695364777,3.33524304,67766.0,67765.0,9.968e-05]
[1721695365000,3.62408957,67766.0,67765.0,9.968e-05]
[1721695365239,3.29034536,67766.0,67765.0,9.968e-05]
[1721695365488,3.51398052,67766.0,67765.0,9.968e-05]
[1721695365736,3.37444752,67766.0,67765.0,9.968e-05]
[1721695365998,3.32444752,67766.0,67765.0,9.968e-05]
[1721695366229,3.37444752,67766.0,67765.0,9.968e-05]
[1721695366462,2.67936245,67766.0,67765.0,9.968e-05]
[1721695366701,2.66836245,67766.0,67765.0,9.968e-05]
[1721695366913,2.72636245,67766.0,67765.0,9.968e-05]
[1721695367199,2.6883206,67766.0,67765.0,9.968e-05]
[1721695367437,2.6803206,67766.0,67765.0,9.968e-05]
[1721695367672,2.6783206,67766.0,67765.0,9.968e-05]
[1721695367896,2.6803206,67766.0,67765.0,9.968e-05]
[1721695368130,2.78988875,67766.0,67765.0,9.968e-05]
[1721695368355,2.68374788,67766.0,67765.0,9.968e-05]
[1721695368850,2.19104888,67766.0,67765.0,9.968e-05]
[1721695369075,2.10624888,67766.0,67765.0,9.968e-05]
[1721695369329,2.09524888,67766.0,67765.0,9.968e-05]
[1721695369589,2.10224888,67766.0,67765.0,9.968e-05]
[1721695369832,2.02184888,67766.0,67765.0,9.968e-05]
[1721695370072,2.2929043,67766.0,67765.0,9.968e-05]
[1721695370290,2.25315716,67766.0,67765.0,9.968e-05]
[1721695371022,2.48162316,67766.0,67765.0,9.968e-05]
[1721695371248,2.48124709,67766.0,67765.0,9.968e-05]
[1721695371718,2.33368109,67766.0,67765.0,9.968e-05]
[1721695371929,2.28368109,67766.0,67765.0,9.968e-05]
[1721695372102,2.17586223,67766.0,67765.0,9.968e-05]
[1721695372546,2.22724377,67766.0,67765.0,9.968e-05]
[1721695372772,2.22724377,67766.0,67765.0,0.14766768]
[1721695372773,2.02147281,67766.0,67765.0,0.14766768]
[1721695373443,1.92147281,67766.0,67765.0,0.50430468]
[1721695373642,1.92147281,67766.0,67765.0,0.20916768]
[1721695373643,2.05375435,67766.0,67765.0,0.20916768]
[1721695374055,2.05375435,67766.0,67765.0,0.50430468]
[1721695374269,1.92233014,67766.0,67765.0,0.50430468]
[1721695375291,2.05477788,67766.0,67765.0,0.50430468]
[1721695375497,1.92233014,67766.0,67765.0,0.50430468]
[1721695377325,1.92401499,67766.0,67765.0,0.50430468]
[1721695377732,1.69878644,67766.0,67765.0,0.50430468]
[1721695377931,2.07328123,67766.0,67765.0,0.50430468]
[1721695378346,2.07328123,67766.0,67765.0,0.14766768]
[1721695378347,1.9240133,67766.0,67765.0,0.14766768]
[1721695379086,1.9240133,67766.0,67765.0,0.44280468]
[1721695380178,1.9240133,67766.0,67765.0,0.73794168]
[1721695380417,1.92363071,67766.0,67765.0,0.73794168]
[1721695381823,0.58791202,67766.0,67765.0,1.03307868]